Cogmind - Beta 10.2 @@@ ROGUE MODE // 2021.09.24 @ 22:19:10 Player: Jezoensis Result: Self-destructed Performance ------------- Evolutions (2) 1000 Regions Visited (7) 1400 Robots Destroyed (54) 270 Value Destroyed (1219) 1219 Prototype IDs (24) 480 Alien Tech Used (0) 0 Bonus (327) 327 TOTAL SCORE: 4696 Bonus ------- High Alert Combat Kills 27 Aligned with FarCom 300 Cogmind --------- Core Integrity 428/550 Matter 289/300 Energy 3/100 System Corruption 0% Temperature Cool (0) Movement Treading (160) Location -8/Materials Parts ------- > --- POWER (1) -------- (None) > --- PROPULSION (3) --- Light Treads Light Treads > --- UTILITY (4) ------ Improved Heat Sink Large Storage Unit Terrain Scan Processor > --- WEAPON (3) ------- Electrolaser > --- INVENTORY (10) --- Large Storage Unit High-capacity Storage Unit Improved Terrain Scanner Medium Armor Plating Sensor Drone Bay (20/20) YOLO Cannon Mining Laser Peak State ------------ > --- POWER ------------ (None) > --- PROPULSION ------- Light Treads Light Treads > --- UTILITY ---------- Improved Heat Sink Large Storage Unit Large Storage Unit Terrain Scan Processor > --- WEAPON ----------- Electrolaser YOLO Cannon > --- INVENTORY -------- High-capacity Storage Unit Improved Terrain Scanner Medium Armor Plating Sensor Drone Bay Mining Laser [Rating: 33] Favorites ----------- Power Ion Engine Engine Ion Engine Propulsion Light Treads Treads Light Treads Utility Small Storage Unit Device Improved Terrain Scanner Storage Small Storage Unit Processor Terrain Scan Processor Protection Light Armor Plating Weapon Assault Rifle Energy Gun Particle Gun Energy Cannon YOLO Cannon Ballistic Gun Assault Rifle Special Weapon Mining Laser Build | -11 -10 -10 -9 -9 -9 -8 -8 ------- Run | Scr Mat Min Mat Min Exi Min Mat Slots Evolved 4 | . . . 2 . . . 2 Power . | . . . . . . . . Propulsion 1 | . . . 1 . . . . Utility 2 | . . . 1 . . . 1 Weapon 1 | . . . . . . . 1 Parts Attached 52 | 7 17 2 13 2 . . 11 Power 2 | 1 . . 1 . . . . Engine 2 | 1 . . 1 . . . . Core . | . . . . . . . . Reactor . | . . . . . . . . Propulsion 10 | 2 2 . 3 . . . 3 Treads 10 | 2 2 . 3 . . . 3 Leg . | . . . . . . . . Wheel . | . . . . . . . . Hover . | . . . . . . . . Flight . | . . . . . . . . Utility 17 | 2 5 2 4 1 . . 3 Device 8 | 1 2 1 2 1 . . 1 Storage 5 | 1 1 1 2 . . . . Processor 1 | . . . . . . . 1 Hackware . | . . . . . . . . Protection 3 | . 2 . . . . . 1 Artifact . | . . . . . . . . Weapon 23 | 2 10 . 5 1 . . 5 Energy Gun 9 | 1 3 . 1 1 . . 3 Energy Cannon 1 | . . . . . . . 1 Ballistic Gun 7 | 1 3 . 3 . . . . Ballistic Cannon . | . . . . . . . . Launcher . | . . . . . . . . Special Weapon 6 | . 4 . 1 . . . 1 Impact Weapon . | . . . . . . . . Slashing Weapon . | . . . . . . . . Piercing Weapon . | . . . . . . . . Special Melee Weapon . | . . . . . . . . Unidentified Prototypes 1 | . . 1 . . . . . Parts Lost 12 | . . . 4 . . . 8 Power 1 | . . . . . . . 1 Propulsion 5 | . . . 2 . . . 3 Utility . | . . . . . . . . Weapon 6 | . . . 2 . . . 4 Highest Loss Streak 7 | . . . 3 . . . 7 Average Slot Usage (%) 98 | . 100 99 99 100 100 100 87 Engine 11 | . 14 14 11 11 11 11 6 Treads 29 | . 28 28 33 33 33 33 24 Device 9 | . 9 . 10 11 11 11 7 Storage 19 | . 16 27 22 22 22 22 18 Energy Gun 8 | . 9 . 5 11 11 11 11 Ballistic Gun 14 | . 14 28 15 11 11 11 8 Special Weapon 1 | . 3 . . . . . . Naked Turns . | . . . . . . . . Heaviest Build 59 | 14 17 17 59 46 46 46 55 Greatest Support 60 | 40 40 40 60 60 60 60 60 Greatest Overweight (x) . | . . . . . . . . Average Overweight (x) . | . . . . . . . . Largest Inventory Capacity 16 | 6 8 8 16 16 16 16 16 Average Capacity 9 | 5 6 7 10 16 16 16 15 Most Carried 11 | 4 8 8 9 7 10 11 11 Average Carried 6 | 2 5 7 6 7 8 10 9 Final Capacity 16 | 6 8 8 16 16 16 16 10 Final Carried 11 | 4 8 8 7 7 10 11 8 Class Distribution -------------------- 77% | Mutant 15% | Scavenger-Mutant 7% | Scavenger-Skirmisher Dominant Class ---------------- Mutant | -10/Materials Mutant | -10/Mines Mutant | -9/Materials Scavenger-Mutant | -9/Mines Scavenger-Mutant | -9/Exiles Scavenger-Skirmisher | -8/Mines Scavenger-Skirmisher | -8/Materials Resources | -11 -10 -10 -9 -9 -9 -8 -8 ----------- Run | Scr Mat Min Mat Min Exi Min Mat Matter Collected 1241 | 306 258 55 443 . . 22 157 Remotely . | . . . . . . . . Salvage Created 1836 | 180 484 95 662 . . 22 393 Parts 118 | 11 26 8 52 . . 4 17 Haulers Intercepted 4 | . 2 . 2 . . . . Recyclers Shooed 3 | . 3 . . . . . . Parts Field Recycled . | . . . . . . . . Retrieved Matter . | . . . . . . . . Parts Self-Destructed . | . . . . . . . . Prevented . | . . . . . . . . Kills | -11 -10 -10 -9 -9 -9 -8 -8 ------- Run | Scr Mat Min Mat Min Exi Min Mat Combat Hostiles Destroyed 36 | . 9 4 16 . . . 7 Guns 36 | . 9 4 16 . . . 7 Classes Destroyed 11 | 2 4 . 3 . . 1 1 Worker 1 | . . . 1 . . . . Builder 2 | . . . . . . 1 1 Tunneler 5 | 5 . . . . . . . Hauler 4 | . 2 . 2 . . . . Recycler 2 | 1 1 . . . . . . Watcher 4 | . 2 . 2 . . . . Swarmer 12 | . 3 3 6 . . . . Grunt 19 | . 6 1 7 . . . 5 Brawler 2 | . . . 1 . . . 1 Duelist 1 | . . . . . . . 1 Sentry 2 | . . . 2 . . . . Best Kill Streak 6 | 5 3 3 5 . . 1 6 Combat Bots Only 5 | . 3 3 5 . . . 3 Max Kills in Single Turn 1 | 1 1 1 1 . . 1 1 Gunslinging . | . . . . . . . . Exploded . | . . . . . . . . Melee . | . . . . . . . . Uniques/NPCs Destroyed . | . . . . . . . . Combat | -11 -10 -10 -9 -9 -9 -8 -8 -------- Run | Scr Mat Min Mat Min Exi Min Mat Damage Taken 2249 | . 336 259 618 . . . 1036 Core 210 | . 38 18 32 . . . 122 Absorbed by Shields . | . . . . . . . . Core Remaining (%) 89 | 100 . 77 . . . 92 . Volleys Fired 175 | 12 46 16 70 . . 1 30 Largest 3 | 2 2 2 2 . . 2 3 Hottest 151 | 70 100 40 100 . . 79 151 Shots Fired 341 | 24 84 32 130 . . 2 69 Gun 331 | 24 78 32 129 . . 2 66 Cannon . | . . . . . . . . Launcher . | . . . . . . . . Special 10 | . 6 . 1 . . . 3 Kinetic 225 | 12 41 32 113 . . 1 26 Thermal 106 | 12 43 . 17 . . 1 33 Explosive . | . . . . . . . . Electromagnetic 10 | . . . . . . . 10 Robot Hit Streak 10 | 6 10 7 10 . . 3 10 Robot Miss Streak 4 | 2 4 2 3 . . . 3 Penetration Max . | . . . . . . . . Secondary Targets 12 | . 1 2 5 . . . 4 Max Gunslinging Chain 1 | . 1 1 1 . . . 1 Shots Hit Robots 226 | 18 51 18 86 . . 2 51 Core Hits 92 | 7 26 7 31 . . 1 20 Critical Hits 2 | 1 . 1 . . . . . Critical Kills . | . . . . . . . . Critical Parts Destroyed 2 | 1 . 1 . . . . . Melee Attacks . | . . . . . . . . Impact . | . . . . . . . . Slashing . | . . . . . . . . Piercing . | . . . . . . . . Sneak Attacks . | . . . . . . . . Combat Hostiles . | . . . . . . . . Follow-up Attacks . | . . . . . . . . Damage Inflicted 2948 | 238 665 226 1035 . . 29 755 Guns 2941 | 238 664 226 1035 . . 29 749 Cannons . | . . . . . . . . Explosions . | . . . . . . . . Melee . | . . . . . . . . Ramming 7 | . 1 . . . . . 6 Kinetic 1690 | 114 286 226 810 . . 14 240 Thermal 1091 | 124 378 . 225 . . 15 349 Explosive . | . . . . . . . . Electromagnetic 160 | . . . . . . . 160 Impact . | . . . . . . . . Slashing . | . . . . . . . . Piercing . | . . . . . . . . Highest Corruption . | . . . . . . . . Average Corruption . | . . . . . . . . Corruption Purged . | . . . . . . . . Overload Shots . | . . . . . . . . Overflow Damage . | . . . . . . . . Projectiles . | . . . . . . . . Explosions . | . . . . . . . . Melee . | . . . . . . . . Knockbacks . | . . . . . . . . Impact . | . . . . . . . . Kinetic . | . . . . . . . . Secondary . | . . . . . . . . Self-Inflicted Damage . | . . . . . . . . Shots . | . . . . . . . . Rammed 2 | . 1 . . . . . 1 Targets Rammed 2 | . 1 . . . . . 1 Kicked . | . . . . . . . . Crushed . | . . . . . . . . Highest Temperature 424 | 36 234 2 134 . . 12 424 Average Temperature 81 | 12 60 2 31 . . 8 211 Received Heat Transfer 984 | . 162 66 252 . . . 504 Effects 4 | . . . . . . . 4 Shutdowns 1 | . . . . . . . 1 Energy Bleed 1 | . . . . . . . 1 Interference 1 | . . . . . . . 1 Damage (minor) 1 | . . . . . . . 1 Siege Activations . | . . . . . . . . Robots Corrupted . | . . . . . . . . Combat Hostiles . | . . . . . . . . Parts Fried . | . . . . . . . . Impact Corruptions . | . . . . . . . . Robots Melted . | . . . . . . . . Combat Hostiles . | . . . . . . . . Parts Melted 4 | 1 2 . 1 . . . . Heat Transferred 2812 | 370 1073 . 518 . . 37 814 Parts Sabotaged . | . . . . . . . . Parts Stolen . | . . . . . . . . Parts Stripped . | . . . . . . . . Power Chain Reactions . | . . . . . . . . Missiles Intercepted . | . . . . . . . . Alert | -11 -10 -10 -9 -9 -9 -8 -8 ------- Run | Scr Mat Min Mat Min Exi Min Mat Peak Influence 491 | 30 257 152 491 26 . 5 115 Initial 59 | . 19 47 59 26 . . 1 Average 136 | 14 121 85 246 26 . 2 39 Maximum Alert Level 2 | . 1 . 2 . . . . Low Security (%) 74 | 100 82 100 39 100 . 100 100 Level 1 19 | . 17 . 40 . . . . Level 2 5 | . . . 19 . . . . Level 3 . | . . . . . . . . Level 4 . | . . . . . . . . Level 5 . | . . . . . . . . High Security . | . . . . . . . . Max Security . | . . . . . . . . Squads Dispatched 3 | . 2 . 1 . . . . Investigation 1 | . 1 . . . . . . Extermination . | . . . . . . . . Reinforcement 2 | . 1 . 1 . . . . Assault . | . . . . . . . . Garrison . | . . . . . . . . Intercept . | . . . . . . . . Construction Impeded . | . . . . . . . . Haulers Reinforced . | . . . . . . . . Stealth | -11 -10 -10 -9 -9 -9 -8 -8 --------- Run | Scr Mat Min Mat Min Exi Min Mat Distress Signals 2 | . . . 2 . . . . Communications Jammed . | . . . . . . . . Distress Signals . | . . . . . . . . Times Spotted 57 | . 22 5 22 . . . 8 Peak Tracking Total 4 | . 3 3 4 . . . 4 Tactical Retreats 4 | . 1 1 2 . . . . Traps | -11 -10 -10 -9 -9 -9 -8 -8 ------- Run | Scr Mat Min Mat Min Exi Min Mat Traps Triggered 1 | . 1 . . . . . . Indirectly . | . . . . . . . . Trap Hack Attempts . | . . . . . . . . Triggered . | . . . . . . . . Disarmed . | . . . . . . . . Reprogrammed . | . . . . . . . . Reused . | . . . . . . . . Traps Extracted . | . . . . . . . . Installed . | . . . . . . . . Triggered . | . . . . . . . . Machines | -11 -10 -10 -9 -9 -9 -8 -8 ---------- Run | Scr Mat Min Mat Min Exi Min Mat Machines Disabled 2 | . 2 . . . . . . Max in Single Turn 1 | . 1 . . . . . . Machines Sabotaged . | . . . . . . . . Garrisons Compromised . | . . . . . . . . Overloaded Fab Kills . | . . . . . . . . Fab Network Shutdowns . | . . . . . . . . Hacking | -11 -10 -10 -9 -9 -9 -8 -8 --------- Run | Scr Mat Min Mat Min Exi Min Mat Machines Accessed 14 | . 7 1 5 . 1 . . Terminals 11 | . 6 . 5 . . . . Fabricators . | . . . . . . . . Repair Stations . | . . . . . . . . Recycling Units 1 | . 1 . . . . . . Scanalyzers . | . . . . . . . . Garrison Access . | . . . . . . . . Total Hacks 46 | . 19 1 25 . 1 . . Successful 31 | . 11 1 18 . 1 . . Failed 14 | . 8 . 6 . . . . Catastrophic . | . . . . . . . . Database Lockouts 1 | . . . 1 . . . . Manual 31 | . 15 . 15 . 1 . . Terminals 42 | . 17 . 25 . . . . Fabricators . | . . . . . . . . Repair Stations . | . . . . . . . . Recycling Units 2 | . 2 . . . . . . Scanalyzers . | . . . . . . . . Garrison Access . | . . . . . . . . Terminal Hacks 20 | . 6 1 12 . 1 . . Part Schematic 2 | . 2 . . . . . . Robot Analysis 2 | . . . 2 . . . . Open Door 1 | . . 1 . . . . . Branch Access Points 1 | . . . 1 . . . . Terminal Index 2 | . 1 . 1 . . . . Alert Level 1 | . . . 1 . . . . Unreport Threat 2 | . . . 2 . . . . Locate Traps 5 | . 2 . 3 . . . . Registered Components 1 | . . . 1 . . . . Zone Layout 2 | . 1 . 1 . . . . EX-Prototype ID Bank 1 | . . . . . 1 . . Fabricator Hacks . | . . . . . . . . Repair Station Hacks . | . . . . . . . . Recycling Unit Hacks . | . . . . . . . . Scanalyzer . | . . . . . . . . Garrison Access Hacks . | . . . . . . . . Unauthorized Hacks 11 | . 5 . 6 . . . . Terminals 9 | . 3 . 6 . . . . Track 2 | . 1 . 1 . . . . Botnet 6 | . 2 . 4 . . . . Operators 1 | . . . 1 . . . . Fabricators . | . . . . . . . . Repair Stations . | . . . . . . . . Recycling Units 2 | . 2 . . . . . . Reject 1 | . 1 . . . . . . Recyclers 1 | . 1 . . . . . . Scanalyzers . | . . . . . . . . Garrison Access . | . . . . . . . . Data Cores Recovered . | . . . . . . . . Used . | . . . . . . . . Hacking Detections 12 | . 7 . 5 . . . . Full Trace Events . | . . . . . . . . Feedback Events . | . . . . . . . . Feedback Blocked . | . . . . . . . . Robot Schematics Acquired . | . . . . . . . . Robots Built . | . . . . . . . . Matter . | . . . . . . . . Time . | . . . . . . . . Total Robot Build Rating . | . . . . . . . . Part Schematics Acquired 2 | . 2 . . . . . . Parts Built . | . . . . . . . . Matter . | . . . . . . . . Time . | . . . . . . . . Total Part Build Rating . | . . . . . . . . Parts Repaired . | . . . . . . . . Time . | . . . . . . . . Parts Recycled . | . . . . . . . . Recycled Matter . | . . . . . . . . Retrieved Matter . | . . . . . . . . Retrieved Components . | . . . . . . . . Parts Scanalyzed . | . . . . . . . . Part Schematics Acquired . | . . . . . . . . Parts Damaged . | . . . . . . . . Bothacking | -11 -10 -10 -9 -9 -9 -8 -8 ------------ Run | Scr Mat Min Mat Min Exi Min Mat Used RIF Installer . | . . . . . . . . Robots Hacked . | . . . . . . . . Non-combat . | . . . . . . . . Combat . | . . . . . . . . Robot Hacks Applied . | . . . . . . . . Relay Couplers Released . | . . . . . . . . Robots Rewired . | . . . . . . . . Allies Hacked . | . . . . . . . . Hacks Repelled . | . . . . . . . . Allies | -11 -10 -10 -9 -9 -9 -8 -8 -------- Run | Scr Mat Min Mat Min Exi Min Mat Total Allies . | . . . . . . . . Largest Group . | . . . . . . . . Highest-Rated Group . | . . . . . . . . Highest-Rated Ally . | . . . . . . . . Total Orders 19 | . . . 19 . . . . EXPLORE 7 | . . . 7 . . . . RETURN 12 | . . . 12 . . . . Ally Attacks . | . . . . . . . . Total Damage . | . . . . . . . . Kills . | . . . . . . . . Allies Corrupted . | . . . . . . . . Allies Melted . | . . . . . . . . Intel | -11 -10 -10 -9 -9 -9 -8 -8 ------- Run | Scr Mat Min Mat Min Exi Min Mat Robot Analysis Total 2 | . . . 2 . . . . Derelict Logs Recovered . | . . . . . . . . Drone Launches 17 | . . . 17 . . . . Drone Recoveries 17 | . . . 17 . . . . Exploration | -11 -10 -10 -9 -9 -9 -8 -8 ------------- Run | Scr Mat Min Mat Min Exi Min Mat Turns Passed 2874 | 144 1076 190 726 55 382 40 261 Spaces Moved 1386 | 65 552 84 299 33 238 23 92 Core 11 | 11 . . . . . . . Treads 1375 | 54 552 84 299 33 238 23 92 Legs . | . . . . . . . . Wheels . | . . . . . . . . Hover . | . . . . . . . . Flight . | . . . . . . . . Fastest Speed 50 | 50 160 160 160 160 160 160 160 Average Speed 159 | 141 160 160 160 160 160 160 160 Slowest Speed 160 | 160 160 160 160 160 160 160 160 Overloaded Moves . | . . . . . . . . Propulsion Burnouts . | . . . . . . . . Robots Hopped . | . . . . . . . . Cave-ins Triggered . | . . . . . . . . Exploration Rate (%) 35 | 4 94 27 58 16 68 7 7 Regions Visited 7 Branch Regions 4 Pre-discovered Areas . | . . . . . . . . Known Exits Taken 1 | . . . 1 . . . . Unknown Exits Taken 6 | 1 1 1 . 1 1 1 . Scrap Searched . | . . . . . . . . Spaces Dug 9 | . 5 . 1 . . . 3 Terrain Destroyed 10 | . 6 . 1 . . . 3 Melee . | . . . . . . . . Projectile 10 | . 6 . 1 . . . 3 AOE . | . . . . . . . . Terrain Rammed . | . . . . . . . . Walls Destroyed . | . . . . . . . . Machines Disabled . | . . . . . . . . Actions | -11 -10 -10 -9 -9 -9 -8 -8 --------- Run | Scr Mat Min Mat Min Exi Min Mat Total 1708 | 91 647 110 423 34 239 24 140 Wait 50 | . 16 . 32 . . . 2 Move 1379 | 64 551 83 298 32 237 22 92 Hop . | . . . . . . . . Pick Up 25 | 7 7 4 3 . 2 1 1 Fast Attach 15 | 5 2 2 4 . . . 2 Attach 14 | 2 . . 5 . . . 7 Detach 7 | . 1 1 2 . . . 3 Swap 23 | . 15 . 4 2 . . 2 Drop 18 | 1 8 4 5 . . . . Fire 175 | 12 46 16 70 . . 1 30 Melee . | . . . . . . . . Ram . | . . . . . . . . Kick . | . . . . . . . . Crush 2 | . 1 . . . . . 1 Escape Stasis . | . . . . . . . . Rewire . | . . . . . . . . Trap . | . . . . . . . . Miscellaneous . | . . . . . . . . Route ------- -11/Scrapyard -10/Materials (discovered 5 exits: *Mat x3 / *Min x2) -10/Mines -9/Materials (discovered 4 exits: [*Mat] / *Min / *Sto x2) -9/Mines -9/Exiles -8/Mines -8/Materials History --------- Turn | Location | Event 24 | -11/Scrapyard | Discovered new exit (range 14) 145 | -11/Scrapyard | Entered Materials 318 | -10/Materials | Build established: Mutant 352 | -10/Materials | Discovered new exit (range 6) 386 | -10/Materials | Discovered new exit (range 10) 509 | -10/Materials | Discovered new exit (range 9) 804 | -10/Materials | Discovered new exit (range 5) 862 | -10/Materials | Discovered new exit (range 7) 1221 | -10/Materials | Entered Mines 1286 | -10/Mines | Found the Drone Emporium 1297 | -10/Mines | Found Prototype Device 1297 | -10/Mines | Identified Sensor Drone Bay 1363 | -10/Mines | Discovered new exit (range 15) 1411 | -10/Mines | Entered Materials 1411 | -9/Materials | Evolved 2 slots: Propulsion x1, Utility x1 1436 | -9/Materials | Identified exit to Mines 1436 | -9/Materials | Identified exit to Storage 1591 | -9/Materials | Discovered new exit (range 27) 1679 | -9/Materials | Lost 3 parts (1n2w) 1980 | -9/Materials | Central database locked down 2137 | -9/Materials | Entered Mines 2147 | -9/Mines | Met a Derelict bent on vengeance 2185 | -9/Mines | Deemed a non-threat by the Exiles lab entrance 2185 | -9/Mines | Discovered new exit (range 5) 2192 | -9/Mines | Entered Exiles 2236 | -9/Exiles | Met 8R-AWN 2260 | -9/Exiles | Met EX-HEX 2301 | -9/Exiles | Met EX-BIN 2320 | -9/Exiles | Aligned with FarCom system 2322 | -9/Exiles | Given EX-Vault access code 2359 | -9/Exiles | Opened EX-Vault 2368 | -9/Exiles | Found YOLO Cannon 2400 | -9/Exiles | Warned to stay clear of 0b10 Research branches 2425 | -9/Exiles | Exiles lab attacked by MAIN.C 2426 | -9/Exiles | Build established: Scavenger-Mutant 2561 | -9/Exiles | Discovered new exit (range 10) 2574 | -9/Exiles | Left Exiles lab with YOLO Cannon 2574 | -9/Exiles | Entered Mines 2600 | -8/Mines | Discovered new exit (range 7) 2614 | -8/Mines | Entered Materials 2614 | -8/Materials | Evolved 2 slots: Utility x1, Weapon x1 2848 | -8/Materials | Lost 7 parts (1p3n3w) 2875 | -8/Materials | Self-destructed Last Messages --------------- 02833_ K-01 Serf collects debris. 02833_ G-47 Trooper destroyed. 02833_ Switching to secondary target: G-47 Trooper. 02834_ K-01 Serf collects debris. 02836_ Acquired 41 matter. 02838_ K-01 Serf collects debris. 02838_ Acquired 10 matter. 02840_ K-01 Serf collects debris. 02841_ Acquired 3 matter. 02841_ K-01 Serf collects debris. 02842_ U-05 Engineer lays Concrete. 02843_ K-01 Serf collects debris. 02843_ U-05 Engineer lays Concrete. 02844_ Acquired 3 matter. 02844_ K-01 Serf collects debris. 02847_ G-47 Trooper destroyed. 02847_ K-01 Serf collects debris. 02865_ Penetrated by Slug. 02868_ Hvy. Assault Rifle destroyed. 02871_ Penetrated by Slug. Map ----- +----------------------------------------------------+ | ?????????????????????????????????????????????????? | | ?????????????????????????????????????????????????? | | ?????????????????????????????????????????????????? | | ?????????????????????????????????????????????????? | | ?????????????????????????????????????????????????? | | ?????????????????????????????????????????????????? | | ?????????????????????????????????????????????????? | | ?????????????????????????????????????????????????? | | ?????????????????????????????????????????????????? | | ???????????????????Y?????????????????????????????? | | ?????????????????????????????????????????????????? | | ?????????????????????????????????????????????????? | | ?????????????????????????????????????????????????? | | ?????????????????????????????????????????????????? | | ?????????????????????????????????????????????????? | | ?????????????????????????????????????????????????? | | ????????????????????????#######??????????????????? | | ????????????????????????# ???????????????????? | | ????????????????????????# ???g???????????????? | | ????????????????????????# ???g????????????????? | | ????????????????????????# #????????????????????? | | ????????????????????????# #????????????????????? | | ????????????????????????# #????????????????????? | | ????????????????????????# #??#?????????????????? | | ????????????Y???????????# u#??#?#???????????????? | | ????????????????????????#@ #?#??????????????????? | | ????????????????????????# a#??#?#???????????????? | | ???????????????????????## ##???##?####?????????? | | ???????????????????????## ##?????##???#?#??????? | | ????????????????????#?### #?#?#?#??#??###??????? | | ?????????????????????#??# #???#?#?##???????????? | | ??????????????????##?#??# #?########?#?##?#????? | | ????????????????? ?#?##?# ##?#?#?#??#??#??????#? | | ????????????????? ?##?#?# [##??##??##?#?####?#??? | | ?????????????????????#??#!%%###?#??##?????##?###?# | | ???????????????? ?#?##?##h==##?###???#######?##### | | ???????????????######### =%!%#######?#?#?#######?? | | ???????? #"#########?###?#???? | | ???????? % ## ########??? | | ???????? % ## """ ###?###?#?# | | ?????????####+########## = ## """ ####??????? | | ??????????????????#?#??## ### """ ##??##??#?# | | ???????????????? ? ???# #?# #??##??#??? | | ???????????????? ???""? #%! ### """ ##?######?# | | ???????????????????""? / #?# """ ##??#??#??? | | ????????????????? ??"" ?# ### """ #??#####?## | | ???????????????? ?# ### ##?#?#??##? | | ????????????????? """??# #######+############?? | | ?????????????????????" # #### | | ?????????????????? ??" ?# #?#? | +----------------------------------------------------+ Best States ------------- Heat Dissipation 45 Energy Generation 12 Energy Capacity 265 Matter Stores 300 Matter Capacity 300 Sight Range 16 Terrain Scan Range 16 Terrain Scan Density 85 Armor Coverage 225 Evasion (%) 50 Recoil Reduction 3 Item Schematics ----------------- Hcp. Storage Unit | -10/Materials | Hacked ECM Suite | -10/Materials | Hacked Robot Schematics ------------------ None Fabricated ------------ Nothing Alien Tech Used ----------------- None Achievements -------------- None Challenges ------------ None Game ------ Seed MatterEnergyMegatreads Manual? 0 Play Time 00:32:00 Cumulative 307.6 hours Start 2021.09.24 @ 21:47:33 End 2021.09.24 @ 22:19:10 Sessions 1 Manual Loads 0 Difficulty Rogue Special Mode None Game No. 131 Rogue 24 Adventurer 105 Explorer 2 Win Type - Total 22 Types 19/2/0/0/0/0/0/0/1 Lore% 49 Gallery% 78 Achievement% 54 Wizard Run 0 Options --------- ASCII 0 Keyboard 1 Movement Numpad Keybinds 0 Fullscreen 1 Font 36/TerminusFine Map View 76x50 Tactical HUD 1 Map Filters NONE Filters NONE Steam 1 RUN: 1be50bff-eb39-4a43-8a9b-6d33c8e1e9fd